fUSD/lending_fUSD_20240826
["ID","MTS","AMOUNT","RATE_DAILY","PERIOD"]
[336007698,1724662244100,-150.0,0.00011,2]
[336007699,1724662244110,-28163.00368808,0.00011,2]
[336007700,1724662244134,-632.13387049,0.00011,2]
[336007701,1724662244154,-2396.5336603,0.00011,2]
[336007702,1724662244166,-261.4769987,0.00011,2]
[336007703,1724662244177,-2320.0,0.00011,2]
[336007704,1724662244189,-462.97223953,0.00011,2]
[336007705,1724662244200,-14265.34945311,0.00011,2]
[336007706,1724662244212,-4971.87759901,0.00011,2]
[336007707,1724662244223,-397.66172814,0.00011,2]
[336007708,1724662244236,-529.60407928,0.00011,2]
[336007709,1724662244251,-12611.58875453,0.00011,2]
[336007710,1724662244262,-700.1734372,0.00011,2]
[336007711,1724662244274,-602.73374512,0.00011,2]
[336007712,1724662244285,-636.87818,0.00011,2]
[336007713,1724662244298,-488.0327715,0.00011,2]
[336007714,1724662244309,-305.20127118,0.00011,2]
[336007715,1724662244320,-6443.66564745,0.00011,2]
[336007716,1724662244332,-143008.61627105,0.00011,2]
[336007717,1724662244343,-343.69288208,0.00011,2]
[336007719,1724662245610,-346.44107291,0.00010899,2]
[336007720,1724662245620,-4430.15826467,0.00010992,2]
[336007721,1724662245632,-3871.59662795,0.00010992,2]
[336007722,1724662245667,-1698.24510738,0.00010992,2]
[336007723,1724662245677,-1660.53189081,0.00011,2]
[336007724,1724662245690,-264.208,0.00011,2]
[336007725,1724662245703,-389.63124367,0.00011,2]
[336007726,1724662245715,-419.49964303,0.00011,2]
[336007727,1724662245726,-1000.18527722,0.00011,2]
[336007728,1724662245782,-300.0,0.00011,2]
[336007729,1724662245794,-6379.89000859,0.00011,2]
[336007730,1724662245841,-344.831931,0.00011,2]
[336007731,1724662245853,-291.09122005,0.00011,2]
[336007732,1724662245872,-5891.39520654,0.00011,2]
[336007733,1724662245883,-551.89411304,0.00011,2]
[336007734,1724662245894,-470.61999998,0.00011,2]
[336007735,1724662245906,-281.818872,0.00011,2]
[336007736,1724662245920,-510.89054182,0.00011,2]
[336007740,1724662248868,2345.0386,9.997e-05,2]
[336007741,1724662300242,464.28,8.427e-05,2]
[336007743,1724662519595,880.0,9.879e-05,2]
[336007744,1724662556474,949.8028791,0.00010009,2]
[336007746,1724662603424,900.0,9.9e-05,3]
[336007747,1724662605580,1800.0,0.0001,3]
[336007748,1724662678473,207.91,9.862e-05,2]
[336007749,1724662693298,742.1170854,0.00010009,2]
[336007750,1724662721265,500.0,8.22e-05,2]
[336007751,1724662721350,502.5901648,8.22e-05,2]
[336007752,1724662721410,500.0,8.22e-05,2]
[336007753,1724662721920,500.0,8.22e-05,2]
[336007755,1724662789267,467.08,8.219e-05,2]
[336007756,1724662834546,205.28,9.856e-05,2]
[336007760,1724662923663,459.02553998,0.00010009,2]
[336007761,1724662925975,1151.46945522,0.0001,2]
[336007762,1724662938415,26175.78791644,0.00010009,2]
[336007763,1724663042162,296.0,9.847e-05,2]
[336007764,1724663133511,500.0,0.00017,90]
[336007765,1724663210220,521.55503783,0.00010009,2]
[336007766,1724663223850,800.0,9.9e-05,3]
[336007767,1724663225952,1600.0,0.0001,3]
[336007778,1724663352891,207.91,9.817e-05,2]
[336007779,1724663375194,317.38,9.814e-05,2]
[336007780,1724663378153,265.5949628,0.00010009,2]
[336007781,1724663393255,2388.81570417,0.00010009,2]
[336007782,1724663406368,880.79319684,0.00010009,2]
[336007783,1724663420002,1868.85597127,0.00010009,2]
[336007784,1724663430081,168.24,9.826e-05,2]
[336007785,1724663431758,-621.77146932,0.00010026,2]
[336007786,1724663431770,-582.57785601,0.00010026,2]
[336007787,1724663431782,-450.25,0.00010026,2]
[336007788,1724663431817,-404.0,0.00010026,2]
[336007789,1724663431828,-172.73175248,0.00010026,2]
[336007790,1724663431838,-155.0,0.00010026,2]
[336007791,1724663431847,-305.40024348,0.00010026,2]
[336007792,1724663431858,-242.53687016,0.00010097,2]
[336007793,1724663431868,-255.71947903,0.00010097,2]
[336007794,1724663431878,-296.99205589,0.00010097,2]
[336007795,1724663431887,-166.39780491,0.00010097,2]
[336007796,1724663431896,-203.13728804,0.00010097,2]
[336007797,1724663431907,-236.78945143,0.00010097,2]
[336007798,1724663431916,-164.4317177,0.00010097,2]
[336007799,1724663431926,-500.0,0.00010097,2]
[336007800,1724663431936,-191.56864968,0.00010097,2]
[336007801,1724663431946,-2400.0,0.000101,3]
[336007802,1724663431955,-3200.0,0.000102,3]
[336007803,1724663431965,-168.24,0.00010224,2]
[336007804,1724663431975,-4000.0,0.000103,3]
[336007805,1724663431985,-178.34,0.00010379,2]
[336007806,1724663431995,-206.54,0.00010391,2]
[336007807,1724663432005,-800.0,0.000104,3]
[336007808,1724663432016,-1075.45,0.000104,2]
[336007809,1724663432026,-499.99,0.000104,2]
[336007810,1724663432035,-467.08,0.00010469,2]
[336007811,1724663432043,-150.0,0.0001047,2]
[336007812,1724663432053,-2354.23,0.00010471,2]
[336007813,1724663432062,-517.65878543,0.00010471,2]
[336007814,1724663432073,-155.0,0.00010471,2]
[336007815,1724663432083,-396.29,0.000105,2]
[336007816,1724663432092,-800.0,0.000105,3]
[336007817,1724663432102,-328.86743048,0.00010505,2]
[336007818,1724663432112,-155.0,0.00010566,2]
[336007819,1724663432125,-800.0,0.000106,3]
[336007821,1724663432135,-3807.8,0.00010692,2]
[336007823,1724663432145,-800.0,0.000107,3]
[336007825,1724663432155,-3683.49,0.000107,2]
[336007827,1724663432165,-150.0,0.00010726,2]
[336007829,1724663432175,-150.0,0.00010733,2]
[336007831,1724663432185,-150.0,0.00010741,2]
[336007833,1724663432194,-150.0,0.0001075,2]
[336007835,1724663432205,-150.0,0.00010756,2]
[336007837,1724663432215,-1500.0,0.00010757,2]
[336007839,1724663432224,-150.0,0.0001076,2]
[336007841,1724663432233,-1001.997,0.00010772,2]
[336007843,1724663432243,-150.0,0.00010773,2]
[336007845,1724663432252,-150.0,0.00010778,2]
[336007847,1724663432262,-150.0,0.00010779,2]
[336007849,1724663432272,-1500.0,0.00010786,2]
[336007851,1724663432282,-150.0,0.00010786,2]
[336007853,1724663432292,-150.0,0.00010791,2]
[336007855,1724663432302,-151.43,0.000108,2]
[336007857,1724663432311,-900.0,0.000108,3]
[336007859,1724663432321,-150.0,0.00010805,2]
[336007861,1724663432331,-150.0,0.00010807,2]
[336007863,1724663432340,-150.0,0.00010813,2]
[336007865,1724663432350,-150.0,0.00010822,2]
[336007866,1724663432359,-1500.0,0.00010829,2]
[336007868,1724663432369,-150.0,0.00010838,2]
[336007870,1724663432378,-150.0,0.00010842,2]
[336007871,1724663432388,-150.0,0.00010847,2]
[336007873,1724663432397,-150.0,0.00010847,2]
[336007874,1724663432407,-150.0,0.00010852,2]
[336007876,1724663432416,-150.0,0.00010858,2]
[336007878,1724663432426,-1500.0,0.0001086,2]
[336007880,1724663432435,-150.0,0.00010863,2]
[336007881,1724663432445,-150.0,0.0001087,2]
[336007882,1724663432454,-150.0,0.00010871,2]
[336007883,1724663432464,-150.0,0.00010872,2]
[336007884,1724663432473,-150.0,0.00010878,2]
[336007885,1724663432483,-150.0,0.00010879,2]
[336007886,1724663432493,-150.0,0.0001088,2]
[336007887,1724663432502,-150.0,0.0001088,2]
[336007888,1724663432512,-292.74243511,0.00010888,2]
[336007889,1724663432522,-358.14086593,0.00010888,2]
[336007890,1724663432532,-150.0,0.00010888,2]
[336007891,1724663432542,-150.0,0.00010891,2]
[336007892,1724663432551,-166.099,0.00010897,2]
[336007893,1724663432561,-543.65674086,0.00010899,2]
[336007894,1724663432570,-543.65674081,0.00010899,2]
[336007895,1724663432580,-543.65674081,0.00010899,2]
[336007896,1724663432589,-543.65674081,0.00010899,2]
[336007897,1724663432599,-543.65674081,0.00010899,2]
[336007898,1724663432609,-543.65674081,0.00010899,2]
[336007899,1724663432618,-543.65674081,0.00010899,2]
[336007900,1724663432627,-543.65674081,0.00010899,2]
[336007901,1724663432637,-1049.64030745,0.00010899,2]
[336007902,1724663432647,-543.65674081,0.00010899,2]
[336007903,1724663432657,-768.35054288,0.000109,2]
[336007904,1724663432666,-167.7305538,0.000109,2]
[336007905,1724663432675,-150.0,0.000109,2]
[336007906,1724663432685,-543.65674081,0.000109,2]
[336007907,1724663432696,-171.61026492,0.000109,2]
[336007908,1724663432705,-5717.87210509,0.000109,2]
[336007909,1724663432717,-1559.20212666,0.000109,2]
[336007910,1724663432728,-8187.43401926,0.000109,2]
[336007911,1724663432742,-3186.53480063,0.000109,2]
[336007912,1724663432754,-6036.6456329,0.000109,2]
[336007913,1724663432764,-406.46096392,0.000109,2]
[336007914,1724663432777,-555.249,0.000109,2]
[336007915,1724663432792,-2456.39396944,0.000109,2]
[336007916,1724663432801,-150.0,0.00010906,2]
[336007917,1724663432810,-500.0,0.00010912,2]
[336007918,1724663432820,-150.0,0.00010912,2]
[336007919,1724663432829,-150.0,0.00010915,2]
[336007920,1724663432839,-1500.0,0.00010919,2]
[336007921,1724663432848,-150.0,0.00010929,2]
[336007922,1724663432857,-150.0,0.00010932,2]
[336007923,1724663432870,-150.0,0.00010932,2]
[336007924,1724663432879,-150.0,0.00010937,2]
[336007925,1724663432889,-2270.50551623,0.0001094,2]
[336007926,1724663432900,-729.49448377,0.0001094,2]
[336007927,1724663432909,-150.0,0.00010958,2]
[336007928,1724663432918,-158.26,0.00010959,2]
[336007929,1724663432927,-180.88,0.00010959,2]
[336007930,1724663432937,-500.0,0.0001096,2]
[336007931,1724663432946,-500.0,0.0001096,2]
[336007932,1724663432955,-481.36551623,0.0001096,2]
[336007933,1724663432966,-18.63448377,0.0001096,2]
[336007934,1724663432976,-150.0,0.00010966,2]
[336007935,1724663432985,-204.18160294,0.00010972,2]
[336007936,1724663432995,-200.0,0.00010973,2]
[336007937,1724663433005,-150.0,0.00010978,2]
[336007938,1724663433015,-523.5801868,0.00010979,2]
[336007939,1724663433026,-150.0,0.00010983,2]
[336007940,1724663433037,-150.0,0.00010987,2]
[336007941,1724663433047,-150.0,0.00010989,2]
[336007942,1724663433057,-607.50217725,0.00010989,2]
[336007943,1724663433067,-150.0,0.00010991,2]
[336007944,1724663433076,-151.0,0.00010992,2]
[336007945,1724663433086,-625.667988,0.00010992,2]
[336007946,1724663433095,-240.108239,0.00010992,2]
[336007947,1724663433105,-625.667988,0.00010992,2]
[336007948,1724663433115,-240.108239,0.00010992,2]
[336007949,1724663433129,-151.0,0.00010992,2]
[336007950,1724663433139,-151.0,0.00010992,2]
[336007951,1724663433150,-151.0,0.00010992,2]
[336007952,1724663433159,-917.7387815,0.00010992,2]
[336007953,1724663433170,-2607.9040449,0.00010992,2]
[336007954,1724663433179,-1456.3950766,0.00010992,2]
[336007955,1724663433189,-7315.7302327,0.00010992,2]
[336007956,1724663433201,-3698.06368136,0.00010992,2]
[336007957,1724663433213,-2507.81839924,0.00010992,2]
[336007958,1724663433223,-301.48032596,0.00010992,2]
[336007959,1724663433234,-1184.24886143,0.00010992,2]
[336007960,1724663433246,-368.7704374,0.00010992,2]
[336007961,1724663433258,-3241.53430371,0.00010992,2]
[336007962,1724663433267,-3986.1857764,0.00010992,2]
[336007963,1724663433277,-2876.3376243,0.00010992,2]
[336007964,1724663433287,-23511.19810391,0.00010992,2]
[336007965,1724663433299,-845.87545876,0.00010992,2]
[336007966,1724663433311,-1028.79,0.00010992,2]
[336007967,1724663433322,-9421.63577407,0.00010992,2]
[336007968,1724663433333,-752.17210597,0.00010992,2]
[336007969,1724663433346,-1249.78872132,0.00010992,2]
[336007970,1724663433362,-4507.06363913,0.00010992,2]
[336007971,1724663433373,-11676.20481038,0.00010992,2]
[336007972,1724663433384,-382.10100189,0.00010992,2]
[336007977,1724663437884,-309.61730491,0.00010026,2]
[336007978,1724663437894,-203.7929407,0.00010097,2]
[336007979,1724663437904,-547.48970731,0.00010097,2]
[336007980,1724663437914,-4386.95808147,0.00010992,2]
[336007981,1724663437923,-942.01093051,0.00010992,2]
[336007982,1724663438049,-292.46071786,0.00010992,2]
[336007983,1724663438064,-25794.47568979,0.00010992,2]
[336007997,1724663439850,-217.52152038,0.000109,2]
[336007998,1724663439859,-236.30790308,0.00010992,2]
[336007999,1724663439960,-4582.46085546,0.00010992,2]
[336008000,1724663439972,-615.61579363,0.00010992,2]
[336008002,1724663440304,-16390.16878507,0.00010992,2]
[336008004,1724663440314,-35720.68883954,0.00010992,2]
[336008007,1724663440338,-400.0,0.00010992,2]
[336008010,1724663440351,-3824.52481436,0.00010992,2]
[336008012,1724663440361,-31036.9266324,0.00010992,2]
[336008014,1724663440371,-22128.6396108,0.00010992,2]
[336008016,1724663440380,-162.39023677,0.00010997,2]
[336008018,1724663440392,-649.56094708,0.00010997,2]
[336008020,1724663440401,-8425.5783848,0.00010998,2]
[336008022,1724663440411,-3546.09782057,0.00010998,2]
[336008144,1724663442889,-625.01231053,0.00010992,2]
[336008150,1724663442945,-566.35561271,0.00010992,2]
[336008157,1724663443004,-485.305,0.00010992,2]
[336008160,1724663443061,-6570.11198866,0.00010992,2]
[336008161,1724663443072,-6974.9280333,0.00010992,2]
[336008162,1724663443082,-5703.0711548,0.00010992,2]
[336008163,1724663443093,-4431.2142762,0.00010992,2]
[336008164,1724663443104,-3159.3573977,0.00010992,2]
[336008165,1724663443116,-63123.97689783,0.00010998,2]
[336008166,1724663443130,-985.73362732,0.00010999,2]
[336008167,1724663443141,-503.0,0.00011,2]
[336008168,1724663443151,-609138.50829574,0.00011,2]
[336008169,1724663443160,-1301559.76141218,0.00011,2]
[336008170,1724663443172,-38453.041751,0.00011,2]
[336008171,1724663443183,-12732.91714098,0.00011,2]
[336008172,1724663443194,-33717.400356,0.00011,2]
[336008173,1724663443207,-10928.28345868,0.00011,2]
[336008174,1724663443228,-473.25526323,0.00011,2]
[336008175,1724663443239,-8798.02859357,0.00011,2]
[336008176,1724663445764,-356.58111042,0.000109,2]
[336008178,1724663445774,-208.55379158,0.000109,2]
[336008180,1724663445786,-2066.50353201,0.000109,2]
[336008183,1724663445827,-5178.56267641,0.000109,2]
[336008184,1724663445836,-1129.50805341,0.00011,2]
[336008185,1724663445847,-8499.85506002,0.00011,2]
[336008186,1724663445859,-16288.40638518,0.00011,2]
[336008187,1724663445871,-314.2299998,0.00011,2]
[336008188,1724663445887,-432.05724792,0.00011,2]
[336008189,1724663445898,-731554.64693099,0.00011,2]
[336008190,1724663445909,-2470.79766762,0.00011,2]
[336008191,1724663445920,-263.86078829,0.00011,2]
[336008192,1724663445931,-612.34305062,0.00011,2]
[336008193,1724663445945,-5948.71108862,0.00011,2]
[336008194,1724663446000,-949.65,0.00011,2]
[336008199,1724663469228,445.08,9.173e-05,2]
[336008200,1724663494012,500.0,8.22e-05,2]
[336008201,1724663494372,500.0,8.22e-05,2]
[336008202,1724663546016,500.0,8.22e-05,2]
[336008203,1724663600065,12350.86249705,9.963e-05,2]
[336008204,1724663637069,168.43745091,9.963e-05,2]
[336008205,1724663809630,210.0,9.94e-05,2]
[336008206,1724663810008,210.0,9.85e-05,2]
[336008207,1724663810882,210.0,9.75e-05,2]
[336008208,1724663811761,210.0,9.65e-05,2]
[336008209,1724663860837,182.62,9.898e-05,2]
[336008210,1724663971109,447.54,8.219e-05,2]
[336008211,1724664091518,236.8,9.889e-05,2]
[336008212,1724664099082,160.60814101,9.962e-05,2]
[336008213,1724664211228,5219.34,0.0001,2]
[336008215,1724664224546,500.0,0.0001,2]
[336008216,1724664224577,500.0,0.0001,2]
[336008217,1724664225318,500.0,0.0001,2]
[336008218,1724664225354,500.0,0.0001,2]
[336008219,1724664226090,588.67,0.0001,2]
[336008220,1724664226468,212.21,0.0001,2]
[336008221,1724664230369,2609.67,0.0001,2]
[336008222,1724664233520,200.0,9.9e-05,3]
[336008223,1724664235610,500.0,0.0001,3]
[336008225,1724664352254,10543.4949088,0.00010009,2]
[336008226,1724664368078,182.62,9.892e-05,2]
[336008227,1724664372877,12499.23,9.892e-05,2]
[336008228,1724664414512,265.5949628,0.00010009,2]
[336008230,1724664513699,2216.31651882,0.00010009,2]
[336008236,1724664547587,170.62038791,0.00010009,2]
[336008241,1724664551154,162.86951245,0.00010009,2]
[336008242,1724664565458,472.7,8.219e-05,2]
[336008255,1724664625248,810.56,9.867e-05,2]
[336008276,1724664632002,-772.36564675,0.00010012,2]
[336008277,1724664632125,-210.0,0.0001004,2]
[336008278,1724664632140,-201.0,0.0001013,2]
[336008279,1724664632150,-210.0,0.0001013,2]
[336008280,1724664632159,-201.0,0.0001023,2]
[336008281,1724664632169,-210.0,0.0001023,2]
[336008282,1724664632184,-87.22437934,0.0001033,2]
[336008283,1724664632200,-113.77562066,0.0001033,2]
[336008284,1724664632209,-210.0,0.0001033,2]
[336008285,1724664632219,-201.0,0.0001042,2]
[336008286,1724664632229,-210.0,0.0001042,2]
[336008287,1724664632238,-472.7,0.0001047,2]
[336008288,1724664632247,-201.0,0.0001052,2]
[336008289,1724664632257,-210.0,0.0001052,2]
[336008290,1724664632266,-795.0,0.00010526,2]
[336008291,1724664632275,-190.59645219,0.00010565,2]
[336008292,1724664632288,-109.40354781,0.00010565,2]
[336008293,1724664632298,-1051.94902843,0.00010566,2]
[336008294,1724664632309,-536.7432029,0.00010566,2]
[336008295,1724664632321,-858.54570659,0.00010566,2]
[336008296,1724664632331,-201.0,0.0001062,2]
[336008297,1724664632340,-210.0,0.0001062,2]
[336008298,1724664632349,-2353.36912186,0.00010699,2]
[336008299,1724664632669,-35.44658231,0.00010699,2]
[336008300,1724664632681,-743.18726464,0.00010699,2]
[336008305,1724664637986,-260.26996778,0.00010505,2]
[336008306,1724664638044,-995.36520928,0.00010505,2]
[336008307,1724664638106,-375.34301508,0.00010505,2]
[336008308,1724664638226,-483.52651245,0.00010505,2]
[336008309,1724664638237,-831.31200603,0.00010505,2]
[336008310,1724664638248,-636.74999999,0.00010505,2]
[336008311,1724664638331,-445.42957939,0.00010505,2]
[336008312,1724664638342,-1381.70057454,0.00010505,2]
[336008313,1724664638352,-914.53007566,0.00010699,2]
[336008314,1724664638361,-702.22,0.000107,2]
[336008316,1724664638370,-790.9,0.000107,2]
[336008318,1724664638379,-201.0,0.0001071,2]
[336008320,1724664638388,-210.0,0.0001071,2]
[336008322,1724664638398,-3729.65,0.00010771,2]
[336008323,1724664638407,-3744.59,0.00010771,2]
[336008325,1724664638416,-3783.1,0.00010771,2]
[336008327,1724664638426,-150.0,0.00010798,2]
[336008329,1724664638435,-201.0,0.0001081,2]
[336008331,1724664638444,-210.0,0.0001081,2]
[336008333,1724664638453,-155.21820583,0.00010852,2]
[336008335,1724664638462,-600.79792946,0.00010861,2]
[336008337,1724664638471,-547.48970731,0.00010861,2]
[336008339,1724664638481,-485.90610234,0.00010862,2]
[336008341,1724664638490,-151.5,0.00010871,2]
[336008343,1724664638499,-313.30908928,0.00010888,2]
[336008345,1724664638510,-311.61484676,0.00010888,2]
[336008348,1724664638523,-155.0,0.00010888,2]
[336008350,1724664638533,-746.78869773,0.0001089,2]
[336008352,1724664638542,-155.0,0.0001089,2]
[336008354,1724664638552,-155.0,0.0001089,2]
[336008356,1724664638561,-286.12019281,0.00010899,2]
[336008358,1724664638570,-155.0,0.00010899,2]
[336008360,1724664638579,-883.7079,0.000109,2]
[336008362,1724664638591,-3236.6523,0.000109,2]
[336008364,1724664638601,-1471.267,0.000109,2]
[336008365,1724664638610,-34028.4584,0.000109,2]
[336008367,1724664638619,-201.0,0.000109,2]
[336008369,1724664638628,-210.0,0.000109,2]
[336008371,1724664638638,-7500.0,0.000109,2]
[336008373,1724664638648,-2776.59435001,0.000109,2]
[336008375,1724664638657,-9681.31,0.000109,2]
[336008377,1724664638667,-500.0,0.00010912,2]
[336008379,1724664638676,-170.7,0.00010959,2]
[336008381,1724664638689,-154.71,0.00010959,2]
[336008383,1724664638704,-773.6,0.00010959,2]
[336008385,1724664638716,-500.0,0.0001096,2]
[336008387,1724664638725,-500.0,0.0001096,2]
[336008389,1724664638735,-154.98152279,0.00010973,2]
[336008391,1724664638744,-169.98889795,0.00010973,2]
[336008393,1724664638753,-150.99109742,0.00010973,2]
[336008395,1724664638762,-160.9672204,0.00010973,2]
[336008396,1724664638772,-162.181,0.00010978,2]
[336008398,1724664638781,-500.0,0.00010981,2]
[336008400,1724664638790,-150.86,0.0001099,2]
[336008402,1724664638799,-500.0,0.0001099,2]
[336008404,1724664638809,-337.274746,0.00010992,2]
[336008406,1724664638818,-389.3062948,0.00010992,2]
[336008408,1724664638827,-441.3378436,0.00010992,2]
[336008410,1724664638836,-493.3693925,0.00010992,2]
[336008412,1724664638846,-545.4009413,0.00010992,2]
[336008414,1724664638855,-2904.5447314,0.00010992,2]
[336008416,1724664638865,-2459.756954,0.00010992,2]
[336008418,1724664638874,-2014.9691766,0.00010992,2]
[336008420,1724664638883,-1570.1813992,0.00010992,2]
[336008422,1724664638893,-1125.3936218,0.00010992,2]
[336008424,1724664638903,-797.9794701,0.00010992,2]
[336008436,1724664639012,-285.2431971,0.00010995,2]
[336008437,1724664639022,-3349.3325088,0.00010995,2]
[336008439,1724664639031,-5277.53835378,0.00010999,2]
[336008441,1724664639041,-500.0,0.00010999,2]
[336008443,1724664639051,-745.0,0.00010999,2]
[336008445,1724664639061,-745.0,0.00010999,2]
[336008447,1724664639072,-745.0,0.00010999,2]
[336008449,1724664639081,-745.0,0.00010999,2]
[336008451,1724664639091,-745.0,0.00010999,2]
[336008453,1724664639101,-745.0,0.00010999,2]
[336008455,1724664639110,-745.0,0.00010999,2]
[336008457,1724664639120,-745.0,0.00010999,2]
[336008458,1724664639129,-745.0,0.00010999,2]
[336008460,1724664639138,-745.0,0.00010999,2]
[336008462,1724664639148,-492.86681366,0.00010999,2]
[336008464,1724664639157,-1152.21649395,0.00010999,3]
[336008466,1724664639166,-1152.21649395,0.00010999,3]
[336008468,1724664639175,-1152.21649394,0.00010999,3]
[336008470,1724664639184,-2262.79391045,0.00010999,2]
[336008472,1724664639193,-151.73723234,0.00010999,2]
[336008473,1724664639202,-500.0,0.00010999,2]
[336008474,1724664639211,-500.0,0.00010999,2]
[336008475,1724664639220,-500.0,0.00010999,2]
[336008476,1724664639230,-500.0,0.00010999,2]
[336008477,1724664639238,-506.0,0.00011,2]
[336008478,1724664639247,-445239.45344772,0.00011,2]
[336008479,1724664639256,-1236558.20127758,0.00011,2]
[336008480,1724664639295,-1028.52477935,0.00011,2]
[336008481,1724664639306,-666.77284336,0.00011,2]
[336008482,1724664639317,-11554.30971465,0.00011,2]
[336008484,1724664640114,-481.60206522,0.00010713,2]
[336008485,1724664640125,-1258.98495544,0.00010713,2]
[336008486,1724664640134,-203.13728804,0.00010862,2]
[336008487,1724664640144,-155.38649312,0.00010862,2]
[336008488,1724664640153,-299.10066112,0.00011,2]
[336008489,1724664640165,-1352.59422969,0.00011,2]
[336008490,1724664640189,-645.18180464,0.00011,2]
[336008491,1724664640201,-1529.43690522,0.00011,2]
[336008492,1724664640212,-65076.82359592,0.00011,2]
[336008493,1724664640223,-23473.51817953,0.00011,2]
[336008494,1724664640247,-3162.60000008,0.00011,2]
[336008495,1724664640347,-10077034.51599957,0.00011,2]
[336008496,1724664640356,-1000.0,0.00011,2]
[336008497,1724664640366,-1038.5,0.00011,2]
[336008498,1724664640376,-1581126.34141133,0.00011,2]
[336008499,1724664640406,-4409.69574016,0.00011,2]
[336008500,1724664640466,-328.25364674,0.00011,2]
[336008503,1724664640477,-1015.75187423,0.00011,2]
[336008579,1724664641256,1051.32949098,0.0001,2]
[336008662,1724664642088,1298.45974265,9.962e-05,2]
[336008697,1724664642637,2238.43878729,9.962e-05,2]
[336008753,1724664643179,-441.344958,0.00011,2]
[336008754,1724664643192,-66992.50476128,0.00011,2]
[336008755,1724664643203,-133849.91803497,0.00011,2]
[336008756,1724664643517,-638.274,0.00011,2]
[336008758,1724664645945,-508.0,0.00011,2]
[336008760,1724664645955,-954.02146155,0.00011,2]
[336008764,1724664646003,-1080.67623764,0.00011,2]
[336008765,1724664646015,-237258.50715402,0.00011,2]
[336008766,1724664646153,-754.85459043,0.00011,2]
[336008767,1724664646176,-912.85999773,0.00011,2]
[336008768,1724664646189,-1397.67761202,0.00011,2]
[336008772,1724664674442,500.0,8.22e-05,2]
[336008773,1724664674544,500.0,8.22e-05,2]
[336008774,1724664704743,500.0,8.22e-05,2]
[336008775,1724664730294,-150.0,0.00013,20]
[336008776,1724664773553,500.0,9.164e-05,2]
[336008777,1724664776699,500.0,9.164e-05,2]
[336008779,1724665054067,448.58,8.219e-05,2]
[336008780,1724665145093,1074.88726643,9.962e-05,2]
[336008781,1724665167501,1258.20462876,9.962e-05,2]
[336008782,1724665173393,351.55,9.975e-05,2]
[336008783,1724665203329,5000.0,9.496e-05,2]
[336008784,1724665203645,5000.0,9.496e-05,2]
[336008785,1724665203960,5000.0,9.496e-05,2]
[336008786,1724665356091,500.0,9.164e-05,2]
[336008787,1724665394076,500.0,9.164e-05,2]
[336008788,1724665397930,500.0,9.164e-05,2]
[336008789,1724665411137,500.0,9.164e-05,2]
[336008790,1724665411692,500.0,9.164e-05,2]
[336008791,1724665484583,500.0,9.164e-05,2]
[336008792,1724665489348,500.0,9.164e-05,2]
[336008793,1724665501882,500.0,9.164e-05,2]
[336008794,1724665514286,500.0,9.164e-05,2]
[336008795,1724665518072,500.0,9.164e-05,2]
[336008796,1724665538380,495.63,8.219e-05,2]
[336008797,1724665590999,500.0,9.164e-05,2]
[336008798,1724665604375,1050.0,0.0001,2]
[336008799,1724665622688,265.5949628,0.00010009,2]
[336008800,1724665642820,500.0,9.164e-05,2]
[336008801,1724665651307,297.51588055,9.962e-05,2]
[336008802,1724665661004,500.0,9.164e-05,2]
[336008803,1724665691134,500.0,9.164e-05,2]
[336008804,1724665693994,500.0,9.164e-05,2]
[336008805,1724665738946,363.47,9.878e-05,2]